{"text_format":"1","workbook":"xlsx","n_sheets":4,"sheets":["Klimagass","Brukerveiledning","Versjonslogg","Biodiesel"],"not_rendered":{"charts":0,"images":0,"macros":1,"external_links":0,"defined_names":0,"comments":0,"pivot_tables":0},"unopened":[],"bounds":{"document_bytes":16777216,"sheet_cells":100000,"rows_first":2000,"rows_last":500,"rows_between":2000,"halvings":0,"cell_chars":16384,"cell_head_chars":4096},"cells_cut":0,"cells_raw":0,"read":"whole","date_system":"1900"}

{"sheet":"Klimagass","index":0,"n_rows":172,"n_cols":11,"rows_kept":172,"cut":false,"hidden":false,"merged":[[10,1,10,2],[3,1,3,2],[4,1,4,2],[5,1,5,2],[6,1,6,2],[3,3,3,5],[4,3,4,5],[6,3,6,5],[5,3,5,5],[9,1,9,2]]}
[null,"BEREGNING KLIMAGASSUTSLIPP FOR UTVALGTE INNSATSFAKTORER"]
[]
[]
[null,"Firma"]
[null,"Prosjekt"]
[null,"Dato"]
[null,"Velg: budsjett/regnskap"]
[]
[]
[null,"Innsatsfaktor",null,"Utslipp totalt","Utslippsfaktor","Mengde","Enhet","SUM A1-A3: Materialproduksjon","A4: Transport ","A5: Konstruksjons-\nfase","Kort kommentar"]
[null,null,null,"tonn CO2e","kg CO2e/enhet","n/a","n/a","kg CO2e/enhet","kg CO2e/enhet","kg CO2/enhet"]
[]
[null,null,"Konstruksjonsbetong",{"$f":"SUM(D14:D23)","v":0},null,{"$f":"SUM(F14:F23)","v":0},"m3"]
[null,null,"…. (fyll inn beskrivelse)",{"$f":"+E14*F14/1000","v":0},{"$f":"+H14+I14","v":0},null,"m3"]
[null,null,"…. (fyll inn beskrivelse)",0,0,null,"m3"]
[null,null,"…. (fyll inn beskrivelse)",0,0,null,"m3"]
[null,null,"…. (fyll inn beskrivelse)",0,0,null,"m3"]
[null,null,"…. (fyll inn beskrivelse)",0,0,null,"m3"]
[null,null,"…. (fyll inn beskrivelse)",0,0,null,"m3"]
[null,null,"…. (fyll inn beskrivelse)",0,0,null,"m3"]
[null,null,"…. (fyll inn beskrivelse)",0,0,null,"m3"]
[null,null,"…. (fyll inn beskrivelse)",0,0,null,"m3"]
[null,null,"…. (fyll inn beskrivelse)",0,0,null,"m3"]
[null,null,"Betongelementer - prefabrikert",{"$f":"SUM(D25:D34)","v":0},null,{"$f":"SUM(F25:F34)","v":0},"tonn"]
[null,null,"…. (fyll inn beskrivelse)",{"$f":"+E25*F25/1000","v":0},0,null,"tonn"]
[null,null,"…. (fyll inn beskrivelse)",0,0,null,"tonn"]
[null,null,"…. (fyll inn beskrivelse)",0,0,null,"tonn"]
[null,null,"…. (fyll inn beskrivelse)",0,0,null,"tonn"]
[null,null,"…. (fyll inn beskrivelse)",0,0,null,"tonn"]
[null,null,"…. (fyll inn beskrivelse)",0,0,null,"tonn"]
[null,null,"…. (fyll inn beskrivelse)",0,0,null,"tonn"]
[null,null,"…. (fyll inn beskrivelse)",0,0,null,"tonn"]
[null,null,"…. (fyll inn beskrivelse)",0,{"$f":"+H33+I33","v":0},null,"tonn"]
[null,null,"…. (fyll inn beskrivelse)",0,0,null,"tonn"]
[null,null,"Stål, armering (kamstål)",{"$f":"SUM(D36:D45)","v":0},null,{"$f":"SUM(F36:F45)","v":0},"tonn"]
[null,null,"…. (fyll inn beskrivelse)",{"$f":"+E36*F36/1000","v":0},{"$f":"+H36+I36","v":0},null,"tonn"]
[null,null,"…. (fyll inn beskrivelse)",0,0,null,"tonn"]
[null,null,"…. (fyll inn beskrivelse)",0,0,null,"tonn"]
[null,null,"…. (fyll inn beskrivelse)",0,0,null,"tonn"]
[null,null,"…. (fyll inn beskrivelse)",0,0,null,"tonn"]
[null,null,"…. (fyll inn beskrivelse)",0,0,null,"tonn"]
[null,null,"…. (fyll inn beskrivelse)",0,0,null,"tonn"]
[null,null,"…. (fyll inn beskrivelse)",0,0,null,"tonn"]
[null,null,"…. (fyll inn beskrivelse)",0,0,null,"tonn"]
[null,null,"…. (fyll inn beskrivelse)",0,0,null,"tonn"]
[null,null,"Stål, spennarmering",{"$f":"SUM(D47:D56)","v":0},null,{"$f":"SUM(F47:F56)","v":0},"tonn"]
[null,null,"…. (fyll inn beskrivelse)",0,{"$f":"+H47+I47","v":0},null,"tonn"]
[null,null,"…. (fyll inn beskrivelse)",0,0,null,"tonn"]
[null,null,"…. (fyll inn beskrivelse)",0,0,null,"tonn"]
[null,null,"…. (fyll inn beskrivelse)",0,0,null,"tonn"]
[null,null,"…. (fyll inn beskrivelse)",0,0,null,"tonn"]
[null,null,"…. (fyll inn beskrivelse)",0,0,null,"tonn"]
[null,null,"…. (fyll inn beskrivelse)",0,0,null,"tonn"]
[null,null,"…. (fyll inn beskrivelse)",0,0,null,"tonn"]
[null,null,"…. (fyll inn beskrivelse)",0,0,null,"tonn"]
[null,null,"…. (fyll inn beskrivelse)",0,0,null,"tonn"]
[null,null,"Stål, peler",{"$f":"SUM(D58:D67)","v":0},null,{"$f":"SUM(F58:F67)","v":0},"tonn"]
[null,null,"…. (fyll inn beskrivelse)",0,{"$f":"+H58+I58","v":0},null,"tonn"]
[null,null,"…. (fyll inn beskrivelse)",0,0,null,"tonn"]
[null,null,"…. (fyll inn beskrivelse)",0,0,null,"tonn"]
[null,null,"…. (fyll inn beskrivelse)",0,0,null,"tonn"]
[null,null,"…. (fyll inn beskrivelse)",0,0,null,"tonn"]
[null,null,"…. (fyll inn beskrivelse)",0,0,null,"tonn"]
[null,null,"…. (fyll inn beskrivelse)",0,0,null,"tonn"]
[null,null,"…. (fyll inn beskrivelse)",0,0,null,"tonn"]
[null,null,"…. (fyll inn beskrivelse)",0,0,null,"tonn"]
[null,null,"…. (fyll inn beskrivelse)",0,0,null,"tonn"]
[null,null,"Stål, spunt",{"$f":"SUM(D69:D78)","v":0},null,{"$f":"SUM(F69:F78)","v":0},"tonn"]
[null,null,"…. (fyll inn beskrivelse)",{"$f":"+E69*F69/1000","v":0},{"$f":"+H69+I69","v":0},null,"tonn"]
[null,null,"…. (fyll inn beskrivelse)",0,0,null,"tonn"]
[null,null,"…. (fyll inn beskrivelse)",0,0,null,"tonn"]
[null,null,"…. (fyll inn beskrivelse)",0,0,null,"tonn"]
[null,null,"…. (fyll inn beskrivelse)",0,0,null,"tonn"]
[null,null,"…. (fyll inn beskrivelse)",0,0,null,"tonn"]
[null,null,"…. (fyll inn beskrivelse)",0,0,null,"tonn"]
[null,null,"…. (fyll inn beskrivelse)",0,0,null,"tonn"]
[null,null,"…. (fyll inn beskrivelse)",0,0,null,"tonn"]
[null,null,"…. (fyll inn beskrivelse)",0,0,null,"tonn"]
[null,null,"Stål, konstruksjonsstål ",{"$f":"SUM(D80:D89)","v":0},null,{"$f":"SUM(F80:F89)","v":0},"tonn"]
[null,null,"…. (fyll inn beskrivelse)",{"$f":"+E80*F80/1000","v":0},{"$f":"+H80+I80","v":0},null,"tonn"]
[null,null,"…. (fyll inn beskrivelse)",0,0,null,"tonn"]
[null,null,"…. (fyll inn beskrivelse)",0,0,null,"tonn"]
[null,null,"…. (fyll inn beskrivelse)",0,0,null,"tonn"]
[null,null,"…. (fyll inn beskrivelse)",0,0,null,"tonn"]
[null,null,"…. (fyll inn beskrivelse)",0,0,null,"tonn"]
[null,null,"…. (fyll inn beskrivelse)",0,0,null,"tonn"]
[null,null,"…. (fyll inn beskrivelse)",0,0,null,"tonn"]
[null,null,"…. (fyll inn beskrivelse)",0,0,null,"tonn"]
[null,null,"…. (fyll inn beskrivelse)",0,0,null,"tonn"]
[null,null,"Trevirke, limtre",{"$f":"SUM(D91:D100)","v":0},null,{"$f":"SUM(F91:F100)","v":0},"m3"]
[null,null,"…. (fyll inn beskrivelse)",{"$f":"+E91*F91/1000","v":0},{"$f":"+H91+I91","v":0},null,"m3"]
[null,null,"…. (fyll inn beskrivelse)",0,0,null,"m3"]
[null,null,"…. (fyll inn beskrivelse)",0,0,null,"m3"]
[null,null,"…. (fyll inn beskrivelse)",0,0,null,"m3"]
[null,null,"…. (fyll inn beskrivelse)",0,0,null,"m3"]
[null,null,"…. (fyll inn beskrivelse)",0,0,null,"m3"]
[null,null,"…. (fyll inn beskrivelse)",0,0,null,"m3"]
[null,null,"…. (fyll inn beskrivelse)",0,0,null,"m3"]
[null,null,"…. (fyll inn beskrivelse)",0,0,null,"m3"]
[null,null,"…. (fyll inn beskrivelse)",0,0,null,"m3"]
[null,null,"Trevirke, konstruksjonstrevirke",{"$f":"SUM(D102:D111)","v":0},null,{"$f":"SUM(F102:F111)","v":0},"m3"]
[null,null,"…. (fyll inn beskrivelse)",{"$f":"+E102*F102/1000","v":0},{"$f":"+H102+I102","v":0},null,"m3"]
[null,null,"…. (fyll inn beskrivelse)",0,0,null,"m3"]
[null,null,"…. (fyll inn beskrivelse)",0,0,null,"m3"]
[null,null,"…. (fyll inn beskrivelse)",0,0,null,"m3"]
[null,null,"…. (fyll inn beskrivelse)",0,0,null,"m3"]
[null,null,"…. (fyll inn beskrivelse)",0,0,null,"m3"]
[null,null,"…. (fyll inn beskrivelse)",0,0,null,"m3"]
[null,null,"…. (fyll inn beskrivelse)",0,0,null,"m3"]
[null,null,"…. (fyll inn beskrivelse)",0,0,null,"m3"]
[null,null,"…. (fyll inn beskrivelse)",0,0,null,"m3"]
[null,null,"Asfalt (slite- og bindelag) ",{"$f":"SUM(D113:D122)","v":0},null,{"$f":"SUM(F113:F122)","v":0},"tonn"]
[null,null,"…. (fyll inn beskrivelse)",{"$f":"+E113*F113/1000","v":0},{"$f":"+H113+I113","v":0},null,"tonn"]
[null,null,"…. (fyll inn beskrivelse)",0,0,null,"tonn"]
[null,null,"…. (fyll inn beskrivelse)",0,0,null,"tonn"]
[null,null,"…. (fyll inn beskrivelse)",0,0,null,"tonn"]
[null,null,"…. (fyll inn beskrivelse)",0,0,null,"tonn"]
[null,null,"…. (fyll inn beskrivelse)",0,0,null,"tonn"]
[null,null,"…. (fyll inn beskrivelse)",0,0,null,"tonn"]
[null,null,"…. (fyll inn beskrivelse)",0,0,null,"tonn"]
[null,null,"…. (fyll inn beskrivelse)",0,0,null,"tonn"]
[null,null,"…. (fyll inn beskrivelse)",0,0,null,"tonn"]
[null,null,"Asfalt bærelag",{"$f":"SUM(D124:D133)","v":0},null,{"$f":"SUM(F124:F133)","v":0},"tonn"]
[null,null,"…. (fyll inn beskrivelse)",0,0,null,"tonn"]
[null,null,"…. (fyll inn beskrivelse)",0,0,null,"tonn"]
[null,null,"…. (fyll inn beskrivelse)",0,0,null,"tonn"]
[null,null,"…. (fyll inn beskrivelse)",0,0,null,"tonn"]
[null,null,"…. (fyll inn beskrivelse)",0,0,null,"tonn"]
[null,null,"…. (fyll inn beskrivelse)",0,0,null,"tonn"]
[null,null,"…. (fyll inn beskrivelse)",0,0,null,"tonn"]
[null,null,"…. (fyll inn beskrivelse)",0,0,null,"tonn"]
[null,null,"…. (fyll inn beskrivelse)",0,0,null,"tonn"]
[null,null,"…. (fyll inn beskrivelse)",0,0,null,"tonn"]
[null,null,"Forsterkningslag",{"$f":"SUM(D135:D144)","v":0},null,{"$f":"SUM(F135:F144)","v":0},"tonn"]
[null,null,"…. (fyll inn beskrivelse)",0,0,null,"tonn"]
[null,null,"…. (fyll inn beskrivelse)",0,0,null,"tonn"]
[null,null,"…. (fyll inn beskrivelse)",0,0,null,"tonn"]
[null,null,"…. (fyll inn beskrivelse)",0,0,null,"tonn"]
[null,null,"…. (fyll inn beskrivelse)",0,0,null,"tonn"]
[null,null,"…. (fyll inn beskrivelse)",0,0,null,"tonn"]
[null,null,"…. (fyll inn beskrivelse)",0,0,null,"tonn"]
[null,null,"…. (fyll inn beskrivelse)",0,0,null,"tonn"]
[null,null,"…. (fyll inn beskrivelse)",0,0,null,"tonn"]
[null,null,"…. (fyll inn beskrivelse)",0,0,null,"tonn"]
[null,null,"Fyllingsmateriale",{"$f":"SUM(D146:D155)","v":0},null,null,"diverse"]
[null,null,"…. (fyll inn beskrivelse)",0,0,null,"tonn"]
[null,null,"…. (fyll inn beskrivelse)",0,0,null,"tonn"]
[null,null,"…. (fyll inn beskrivelse)",0,0,null,"tonn"]
[null,null,"…. (fyll inn beskrivelse)",0,0,null,"tonn"]
[null,null,"…. (fyll inn beskrivelse)",0,0,null,"m2"]
[null,null,"…. (fyll inn beskrivelse)",0,0,null,"m2"]
[null,null,"…. (fyll inn beskrivelse)",0,0,null,"m2"]
[null,null,"…. (fyll inn beskrivelse)",0,0,null,"m3"]
[null,null,"…. (fyll inn beskrivelse)",0,0,null,"m3"]
[null,null,"…. (fyll inn beskrivelse)",0,0,null,"m3"]
[null,null,"Sprengstoff",{"$f":"SUM(D157:D160)","v":0},null,null,"kg"]
[null,null,"…. (fyll inn beskrivelse)",{"$f":"+E157*F157/1000","v":0},{"$f":"+H157","v":0},null,"kg"]
[null,null,"…. (fyll inn beskrivelse)",0,0,null,"kg"]
[null,null,"…. (fyll inn beskrivelse)",0,0,null,"kg"]
[null,null,"…. (fyll inn beskrivelse)",0,{"$f":"+H160","v":0},null,"kg"]
[null,null,"Diesel avgiftsfri (anleggsdiesel)",{"$f":"+E161*F161/1000","v":0},{"$f":"J161","v":3.24},null,"l",null,null,3.24]
[null,null,"Diesel for veitransport",0,{"$f":"J162","v":2.93},null,"l",null,null,2.93]
[null,null,"Bensin",0,3.87,null,"l",null,null,3.87]
[null,null,"Elektrisitet - Norsk miks",0,4.6699999999999998E-2,null,"kWh",null,null,4.6699999999999998E-2]
[null,null,"Arealbruksendring myr",0,{"$f":"J165","v":201.9},null,"m2",null,null,201.9]
[]
[null,null,"Sum Materialer A1-A4",{"$f":"D13+D24+D35+D46+D57+D68+D79+D90+D101+D112+D123+D134+D145+D156","v":0},"tonn CO2ekv"]
[null,null,"Sum Anlegg A5",{"$f":"SUM(D161:D164)","v":0},"tonn CO2ekv"]
[null,null,"Sum Arealbruksendring",{"$f":"D165","v":0},"tonn CO2ekv"]
[null,null,"Sum Totalt",{"$f":"SUM(D167:D169)","v":0},"tonn CO2ekv"]
[]
[null,null,null,"Summen i den røde firkanten brukes til evaluering"]

{"sheet":"Brukerveiledning","index":1,"n_rows":61,"n_cols":2,"rows_kept":61,"cut":false,"hidden":false,"merged":[]}
[]
[null,"BRUKERVEILEDNING"]
[]
[null,"Skjemaet fylles ut av tilbyder. Navn og dato fylles inn i radene 4-7."]
[]
[null,"Mengder og utslippsfaktorer fylles inn i hvite celler. Hvite celler blir synlige ved å trykke på '+' foran de aktuelle materialene."]
[]
[null,"Presisjon: "]
[null," - Materialmengder avrundes til hele tall"]
[null," - Utslippsfaktorer avrundes til antall desimaler ihht VegLCA (utslippsfaktorfane)"]
[]
[null,"Blå og grå celler er låst. Blå celler inneholder eks. formler. Grå celler antyder at det ikke er relevant."]
[]
[null,"Alle materialer som skal brukes og som finnes i skjemaet skal fylles inn."]
[]
[null,"I kolonne I (Transport, A4) skal det fylles inn transportutslipp fra fabrikkport til anleggsport. "]
[null,"Hvis ikke en EPD inneholder informasjon om fase A4 (transport av materialer til anleggsplass) skal transportkalkulatoren til LCA.no benyttes."]
[]
[null,"Hvis ikke det finnes nok rader for underkategorier av et materiale, skal de gjenstående underkategorier fylles inn på et nytt skjema."]
[]
[null,"Summen i den røde firkanten brukes til evaluering."]
[]
[null,"Driftsfasen, riving og konsekvenser utenfor systemgrensene (fase B, C og D ihht EN 15804) er ikke inkludert."]
[]
[null,"Det skal legges inn beregnede forbruksmengder, ikke prosjekterte mengder (f.eks. prelltap skal inkluderes)."]
[]
[null,"Presisering systemgrenser materialkategorier:"]
[null," - Konstruksjonsbetong: per resept, kun typer som beskrives i prosesskode 84.4"]
[null," - Betongelementer - prefabrikert: kun hvelv, peler og konstruksjoner. Ikke VA og rekkverk."]
[null," - Stål, konstruksjonsstål: bærende konstruksjoner (ikke rekkverk og lysmaster)."]
[null," - Trevirke: kun konstrukjsoner. Ikke forskaling."]
[null," - Forsterkningslag: grus, sand, pukk, kult, knust asfalt, knust betong."]
[null," - Fyllingsmateriale: EPS, XPS, skumglassgranulat, lettklinker, ekspandert leire, grus, pukk. Merk at det brukes ulike enheter (tonn, m2, m3)."]
[null," - Sprengstoff: kun materialproduksjonsfase (A1-A3)."]
[]
[null,"Presisering systemgrenser drivstoff (gjelder leverandør og underleverandører):"]
[null," - Alle arbeider og maskiner innenfor anlegget."]
[null," - Bas-biler/funksjonærbiler innenfor anlegget."]
[null," - Massetransport til/fra/innenfor anlegget."]
[null," - Elektrisitetsforbruk innenfor anlegget (inkludert lading av maskiner og verktøy, samt rigg)."]
[null,"Drivstoffbruk for materialtransport inkluderes kun i A4 under hvert materiale. "]
[]
[null,"Utslippsfaktorer for drivstoff, energi og areal kan ikke endres."]
[]
[null,"Utslippsfaktor for \"diesel for veitransport' tar hensyn til en andel innblandet biodrivstoff ihht. omsetningskravet. Utslippsfaktor for anleggsdiesel vil tilpasses et eventuelt fremtidig omsetningskrav for biodrivstoff i anleggsdiesel når det blir aktuelt. Statens vegvesen følger anbefalingen fra Miljødirektoratet og vil ikke etterstrebe overoppfyllelse av omsetningskravene, det vil si at bruk av biodrivstoff utover omsetningskravet ikke vil etterspørres eller premieres. "]
[]
[null,"Eventuelle korte kommentarer kan legges inn i kolonne K (eks henvisning til EPD)."]
[]
[null,"Løsninger som reduserer klimagassutslipp men som ikke fanges opp av malen, dokumenteres separat."]
[]
[null,"Hvis ikke byggherre gjør tilgjengelig andre/bedre grunnlag, skal AR5 kartlaget fra Norsk institutt for bioøkonomi (NIBIO) benyttes for beregninger av størrelsen (kvadratmeter) på arealbruksendringene. Klassifikasjonen i klimagassbudsjettet følger klassifikasjonen i AR5. "]
[null,"Arealbruksendringer defineres som der hvor det gjøres fysiske inngrep og inkluderer: "]
[null,"1.     Vegen og vegens sideareal (avgrenset av grensen på de fysiske inngrepene i terrenget ved byggingen av vegen)"]
[null,"2.     Permanente og midlertidige deponier"]
[null,"3.     Rigg og anleggsområder"]
[]
[null,"Når det gjelder arealbruksendringer, er det kun arealtype 'myr' det skal legges inn tall for. Andre typer er foreløpig utelatt på grunn av praktiske utfordringer. Utslippsfaktoren for myr er per m2 og basert på en antatt dybde på 1 m."]
[]
[null,"Tiltak som fører til opptak av klimagasser (f.eks. planting av skog) skal ikke premieres som klimatiltak og skal ikke fylles inn i skjemaet"]
[]
[null,"Reduksjon av klimagass knyttet til biogent materiale skal ikke inkluderes."]

{"sheet":"Versjonslogg","index":2,"n_rows":6,"n_cols":4,"rows_kept":6,"cut":false,"hidden":false,"merged":[[1,1,1,3]]}
[]
[null,"VERSJONSLOGG"]
[]
[null,"Versjon","Dato","Endring"]
[]
[null,"V15","2022-02-25","Slettet sprøytebetong, kalksementstabilisering og sikringsbolter; ny fane 'versjonslogg'"]

{"sheet":"Biodiesel","index":3,"n_rows":64,"n_cols":6,"rows_kept":64,"cut":false,"hidden":true,"merged":[]}
[null,"Energi (MJ/l)","Utslipp kg CO2e/l","Utslipp kg CO2e/MJ","Utslipp g CO2e/MJ","Kilde"]
["Diesel",36.200000000000003,3.24,{"$f":"C2/B2","v":8.9502762430939228E-2},{"$f":"D2*1000","v":89.502762430939228},"https://www.ssb.no/a/magasinet/miljo/tabell.html"]
["EU red fossil referanse",null,null,null,83.8]
["Biodiesel 50% (FAME)",33,{"$f":"B4*D4","v":1.3827},{"$f":"E4/1000","v":4.19E-2},{"$f":"$E$3*50/100","v":41.9}]
["Biodiesel 60% (FAME)",33,{"$f":"B5*D5","v":1.10616},{"$f":"E5/1000","v":3.3520000000000001E-2},{"$f":"E3*0.4","v":33.520000000000003}]
["Biodiesel 70% (HVO)",34,{"$f":"B6*D6","v":0.85475999999999985},{"$f":"E6/1000","v":2.5139999999999996E-2},{"$f":"E3*0.3","v":25.139999999999997}]
["Biodiesel 80% (HVO)",34,{"$f":"B7*D7","v":0.56984000000000001},{"$f":"E7/1000","v":1.6760000000000001E-2},{"$f":"E3*0.2","v":16.760000000000002}]
["Biodiesel 90% (HVO)",34,{"$f":"B8*D8","v":0.28492000000000001},{"$f":"E8/1000","v":8.3800000000000003E-3},{"$f":"E3*0.1","v":8.3800000000000008}]
[]
["Fame",33]
["HVO",34]
[]
[null,"Reduksjon %","Utslipp g CO2e/MJ","Utslipp kg CO2e/l (HVO)","Utslipp kg CO2e/l (FAME)"]
[{"$f":"_xlfn.TEXTJOIN(\" \",0,$B$13,B14)","v":"Reduksjon % 50"},50,{"$f":"$E$3*(1-B14/100)","v":41.9},{"$f":"C14*B$11/1000","v":1.4245999999999999},{"$f":"C14*B$10/1000","v":1.3827}]
[{"$f":"_xlfn.TEXTJOIN(\" \",0,$B$13,B15)","v":"Reduksjon % 51"},51,41.061999999999998,1.3961079999999999,1.3550459999999998]
["Reduksjon % 52",52,40.223999999999997,1.3676159999999999,1.3273919999999999]
["Reduksjon % 53",53,39.385999999999996,1.3391239999999998,1.2997379999999998]
["Reduksjon % 54",54,38.547999999999995,1.3106319999999998,1.2720839999999998]
["Reduksjon % 55",55,37.709999999999994,1.2821399999999998,1.2444299999999999]
["Reduksjon % 56",56,36.871999999999993,1.2536479999999997,1.2167759999999999]
["Reduksjon % 57",57,36.034000000000006,1.2251560000000001,1.1891220000000002]
["Reduksjon % 58",58,35.196000000000005,1.1966640000000002,1.1614680000000002]
["Reduksjon % 59",59,34.358000000000004,1.168172,1.1338140000000001]
["Reduksjon % 60",60,33.520000000000003,1.13968,1.10616]
["Reduksjon % 61",61,32.682000000000002,1.1111880000000001,1.0785060000000002]
["Reduksjon % 62",62,31.843999999999998,1.0826959999999999,1.0508519999999999]
["Reduksjon % 63",63,31.006,1.0542039999999999,1.0231980000000001]
["Reduksjon % 64",64,30.167999999999999,1.025712,0.99554399999999998]
["Reduksjon % 65",65,29.33,0.99721999999999988,0.96789000000000003]
["Reduksjon % 66",66,28.491999999999997,0.96872799999999992,0.94023599999999985]
["Reduksjon % 67",67,27.653999999999996,0.94023599999999985,0.91258199999999989]
["Reduksjon % 68",68,26.815999999999995,0.91174399999999978,0.88492799999999994]
["Reduksjon % 69",69,25.978000000000005,0.88325200000000015,0.85727400000000009]
["Reduksjon % 70",70,25.140000000000004,0.85476000000000008,0.82962000000000014]
["Reduksjon % 71",71,24.302000000000003,0.82626800000000011,0.80196600000000007]
["Reduksjon % 72",72,23.464000000000002,0.79777600000000004,0.77431200000000011]
["Reduksjon % 73",73,22.626000000000001,0.76928399999999997,0.74665800000000004]
["Reduksjon % 74",74,21.788,0.74079200000000001,0.71900399999999998]
["Reduksjon % 75",75,20.95,0.71229999999999993,0.69135000000000002]
["Reduksjon % 76",76,20.111999999999998,0.68380799999999997,0.66369599999999995]
["Reduksjon % 77",77,19.273999999999997,0.6553159999999999,0.63604199999999989]
["Reduksjon % 78",78,18.435999999999996,0.62682399999999983,0.60838799999999993]
["Reduksjon % 79",79,17.597999999999995,0.59833199999999986,0.58073399999999986]
["Reduksjon % 80",80,16.759999999999994,0.56983999999999979,0.55307999999999979]
["Reduksjon % 81",81,15.921999999999995,0.54134799999999983,0.52542599999999984]
["Reduksjon % 82",82,{"$f":"$E$3*(1-B46/100)","v":15.084000000000003},{"$f":"C46*B$11/1000","v":0.51285600000000009},{"$f":"C46*B$10/1000","v":0.4977720000000001}]
["Reduksjon % 83",83,14.246000000000002,0.48436400000000007,0.47011800000000004]
["Reduksjon % 84",84,13.408000000000003,0.45587200000000011,0.44246400000000013]
["Reduksjon % 85",85,12.570000000000002,0.42738000000000004,0.41481000000000007]
["Reduksjon % 86",86,11.732000000000001,0.39888800000000002,0.38715600000000006]
["Reduksjon % 87",87,10.894,0.370396,0.35950199999999999]
["Reduksjon % 88",88,10.055999999999999,0.34190399999999999,0.33184799999999998]
["Reduksjon % 89",89,9.2179999999999982,0.31341199999999991,0.30419399999999996]
["Reduksjon % 90",90,8.3799999999999972,0.2849199999999999,0.2765399999999999]
["Reduksjon % 91",91,7.5419999999999972,0.25642799999999988,0.24888599999999991]
["Reduksjon % 92",92,6.7039999999999962,0.22793599999999986,0.22123199999999987]
["Reduksjon % 93",93,5.8659999999999961,0.19944399999999987,0.19357799999999986]
["Reduksjon % 94",94,5.028000000000004,0.17095200000000013,0.16592400000000013]
["Reduksjon % 95",95,4.1900000000000039,0.14246000000000011,0.13827000000000012]
["Reduksjon % 96",96,3.352000000000003,0.1139680000000001,0.1106160000000001]
["Reduksjon % 97",97,2.514000000000002,8.5476000000000066E-2,8.2962000000000063E-2]
["Reduksjon % 98",98,1.6760000000000015,5.6984000000000049E-2,5.5308000000000052E-2]
["Reduksjon % 99",99,0.83800000000000074,2.8492000000000024E-2,2.7654000000000026E-2]
["Reduksjon % 100",100,0,0,0]